[Event "Israel National League 2024"]
[Site "Israel"]
[Date "2024.02.16"]
[Round "7.21"]
[White "Rodshtein, Maxim"]
[Black "Smirin, Ilia"]
[Result "1/2-1/2"]
[ECO "B41"]
[WhiteElo "2580"]
[BlackElo "2582"]
[Annotator "RC"]
[PlyCount "188"]
[EventDate "2024.01.07"]
[EventType "team-tourn"]
[EventCountry "ISR"]
[SourceTitle "playchess.com"]
[Source "ChessBase"]
[SourceQuality "1"]
[TimeControl "40/5400+30:1800+30"]

1. e4 {[%emt 0:00:04]} c5 {[%emt 0:07:03]} 2. Nf3 {[%emt 0:00:10]} e6 {[%emt 0:00:28]} 3. d4 {[%emt 0:00:47]} cxd4 {[%emt 0:00:06]} 4. Nxd4 {[%emt 0:00:03]} a6 {[%emt 0:00:10]} 5. c4 {[%emt 0:01:06]} Nf6 {[%emt 0:00:11]} 6. Nc3 {[%emt 0:00:17]} Bb4 {[%emt 0:00:06]} 7. Qc2 {[%emt 0:01:38]} Qc7 {[%emt 0:03:56]} 8. a3 {[%emt 0:00:56]} Bc5 {[%emt 0:01:46]} 9. Nb3 {[%emt 0:00:57]} Be7 {[%emt 0:05:12]} 10. f4 {[%emt 0:04:40]} d6 {[%emt 0:01:52]} 11. Be3 {[%emt 0:05:07]} O-O {[%emt 0:05:40]} 12. Be2 {[%emt 0:02:35]} Nbd7 {[%emt 0:12:07]} 13. O-O {[%emt 0:15:45]} b6 {[%emt 0:00:40]} 14. g4 {[%emt 0:00:32]} Bb7 {[%emt 0:05:56]} 15. g5 {[%emt 0:04:42]} Ne8 {[%emt 0:00:05]} 16. Rac1 {[%emt 0:01:16]} Rc8 {[%emt 0:01:06]} 17. Nd4 {[%emt 0:04:37]} Qd8 {[%emt 0:06:38]} 18. h4 {[%emt 0:06:42]} Nc7 {[%emt 0:03:57]} 19. b4 {[%emt 0:06:25]} Re8 {[%emt 0:01:47]} 20. Bf3 {[%emt 0:12:18]} Bf8 {[%emt 0:01:30]} 21. Bg2 {[%emt 0:00:39]} Ba8 {[%emt 0:05:48]} 22. Qf2 {[%emt 0:03:35]} g6 {[%emt 0:01:37]} 23. Nde2 {[%emt 0:05:21]} Rb8 {[%emt 0:09:45]} 24. h5 {[%emt 0:02:44]} Qe7 {[%emt 0:01:14]} 25. hxg6 {[%emt 0:00:56]} hxg6 {[%emt 0:00:35]} 26. Qh4 {[%emt 0:03:52]} Bg7 {[%emt 0:00:38]} 27. Rf3 {[%emt 0:01:06]} f5 {[%emt 0:01:42]} 28. gxf6 {[%emt 0:02:04]} Qxf6 {[%emt 0:02:04]} 29. Qg4 {[%emt 0:01:18]} Nf8 {[%emt 0:01:18]} 30. Rd1 {[%emt 0:00:59]} Qe7 {[%emt 0:01:06]} 31. Bf2 {[%emt 0:00:26]} Red8 {[%emt 0:01:12]} 32. Bh4 {[%emt 0:05:25]} Bf6 {[%emt 0:00:09]} 33. Bxf6 {[%emt 0:00:26]} Qxf6 {[%emt 0:00:04]} 34. Rfd3 {[%emt 0:01:33]} Ne8 {[%emt 0:02:20]} 35. e5 {[%emt 0:00:38]} dxe5 {[%emt 0:03:20]} 36. fxe5 {[%emt 0:00:01]} Qe7 {[%emt 0:00:07]} 37. Bxa8 {[%emt 0:00:19]} Rxa8 {[%emt 0:02:19]} 38. Nf4 {[%emt 0:03:43]} Rxd3 {[%emt 0:05:58]} 39. Rxd3 {[%emt 0:00:02]} Qf7 {[%emt 0:03:43]} 40. Rg3 {[%emt 0:03:53]} Rd8 {[%emt 0:05:15]} 41. Ne4 {[%emt 0:01:15]} Rd4 {[%emt 0:00:38]} 42. Nxg6 {[%emt 0:17:30]} Nxg6 {[%emt 0:00:25]} 43. Qxg6+ {[%emt 0:00:36]} Qxg6 {[%emt 0:00:31]} 44. Rxg6+ {[%emt 0:00:03]} Kf8 {[%emt 0:04:31]} 45. Ng5 {[%emt 0:03:39]} Rxc4 {[%emt 0:00:57]} 46. Kf2 {[%emt 0:02:39]} Rc2+ {[%emt 0:09:40]} 47. Ke3 {[%emt 0:03:07]} Rc3+ {[%emt 0:00:05]} 48. Kd4 {[%emt 0:03:47]} Rxa3 {[%emt 0:00:10]} 49. Nxe6+ {[%emt 0:00:10]} Kf7 {[%emt 0:02:26]} 50. Nf4 {[%emt 0:00:02]} b5 {[%emt 0:02:19]} 51. Rb6 {[%emt 0:01:13]} a5 {[%emt 0:01:07]} 52. Rb7+ {[%emt 0:00:11]} Kg8 {[%emt 0:01:49]} 53. Rb8 {[%emt 0:00:53]} Kf8 {[%emt 0:01:10]} 54. Nd5 {[%emt 0:01:13]} Kf7 {[%emt 0:00:18]} 55. e6+ {[%emt 0:01:26]} Kxe6 {[%emt 0:00:06]} 56. Rxe8+ {[%emt 0:00:05]} Kd7 {[%emt 0:04:43]} 57. Re7+ {[%emt 0:00:07]} Kd6 {[%emt 0:00:10]} 58. Rb7 {[%emt 0:00:32]} axb4 {[%emt 0:00:05]} 59. Rb6+ {[%emt 0:00:03]} Kd7 {[%emt 0:00:04]} 60. Kc5 {[%emt 0:00:47]} Ra1 {[%emt 0:00:54]} 61. Rd6+ {[%emt 0:00:48]} Ke8 {[%emt 0:00:08]} 62. Nxb4 {[%emt 0:01:07]} Rc1+ {[%emt 0:00:12]} 63. Kb6 {[%emt 0:00:30]} Kf7 {[%emt 0:00:31]} 64. Nd3 {[%emt 0:00:17]} Rf1 {[%emt 0:01:00]} 65. Kc5 {[%emt 0:00:12]} b4 {[%emt 0:01:55]} 66. Kd5 {[%emt 0:00:16]} Kg7 {[%emt 0:07:06]} 67. Rb6 {[%emt 0:00:19]} b3 {[%emt 0:00:00]} 68. Rxb3 {[%emt 0:00:21]} Kf6 {[%emt 0:00:00]} 69. Rb6+ {[%emt 0:00:20]} Kg5 {[%emt 0:00:00]} 70. Rb8 {[%emt 0:00:19]} Rd1 {[%emt 0:00:00]} 71. Ke4 {[%emt 0:00:28]} Ra1 {[%emt 0:00:00]} 72. Rb5+ {[%emt 0:00:33]} Kf6 {[%emt 0:00:00]} 73. Rb6+ {[%emt 0:00:34]} Kg5 {[%emt 0:00:00]} 74. Rc6 {[%emt 0:00:09]} Ra4+ {[%emt 0:00:00]} 75. Ke5 {[%emt 0:00:04]} Ra1 {[%emt 0:00:00]} 76. Rc5 {[%emt 0:00:33]} Kg4 {[%emt 0:00:00]} 77. Ke4 {[%emt 0:00:23]} Ra4+ {[%emt 0:00:00]} 78. Ke3 {[%emt 0:00:05]} Ra3 {[%emt 0:00:00]} 79. Rd5 {[%emt 0:00:13]} Ra1 {[%emt 0:00:10]} 80. Nf2+ {[%emt 0:00:23]} Kh4 {[%emt 0:00:13]} 81. Kf4 {[%emt 0:00:27]} Ra8 {[%emt 0:00:43]} 82. Rf5 {[%emt 0:00:19]} Ra1 {[%emt 0:01:29]} 83. Rb5 {[%emt 0:02:36]} Ra8 {[%emt 0:00:51]} 84. Ne4 {[%emt 0:00:15]} Rf8+ {[%emt 0:00:09]} 85. Ke3 {[%emt 0:00:05]} Re8 {[%emt 0:00:28]} 86. Rf5 {[%emt 0:00:34]} Kg4 {[%emt 0:00:46]} 87. Rg5+ {[%emt 0:00:05]} Kh4 {[%emt 0:00:12]} 88. Rg1 {[%emt 0:00:09]} Kh5 {[%emt 0:00:32]} 89. Kf4 {[%emt 0:00:21]} Rf8+ {[%emt 0:00:15]} 90. Ke5 {[%emt 0:00:05]} Kh4 {[%emt 0:01:22]} 91. Nf6 {[%emt 0:01:15]} Ra8 {[%emt 0:01:00]} 92. Kf4 {[%emt 0:00:35]} Ra4+ {[%emt 0:00:29]} 93. Ne4 {[%emt 0:00:16]} Kh5 {[%emt 0:00:06]} 94. Rg8 {[%emt 0:02:40]} Kh6 {[%emt 0:00:31]} 1/2-1/2

[Event "Israel National League 2024"]
[Site "Israel"]
[Date "2024.02.16"]
[Round "7.22"]
[White "Alekseev, Evgeny"]
[Black "Zanan, Evgeny"]
[Result "1-0"]
[ECO "C55"]
[WhiteElo "2563"]
[BlackElo "2487"]
[Annotator "TA"]
[PlyCount "101"]
[EventDate "2024.01.07"]
[EventType "team-tourn"]
[EventCountry "ISR"]
[SourceTitle "playchess.com"]
[Source "ChessBase"]
[SourceQuality "1"]
[TimeControl "40/5400+30:1800+30"]

{[%evp 10,101,30,34,37,31,33,13,17,13,22,43,37,46,69,58,75,15,118,114,150,143,146,154,127,137,224,204,210,200,207,236,216,212,214,205,219,220,235,215,229,188,230,242,247,239,247,231,271,290,297,282,274,291,291,297,364,460,506,479,569,569,708,707,1062,948,1358,1218,1425,1416,1407,1087,1327,914,1505,1327,1090,1127,1938,3393,5057,3515,6648,4430,9924,5093,29964,29968,29977,29977,29973,29969,12850,11272]} 1. e4 {[%emt 0:00:04]} e5 {[%emt 0:00:48]} 2. Nf3 {[%emt 0:00:18]} Nc6 {[%emt 0:00:06]} 3. Bc4 {[%emt 0:01:32]} Nf6 {[%emt 0:01:57]} 4. d3 {[%emt 0:00:58]} h6 {[%emt 0:01:35]} 5. O-O {[%emt 0:03:05]} d6 {[%emt 0:00:44]} 6. c3 {[%emt 0:01:35]} g5 {[%emt 0:06:10][%cal Bg7g5,Bg5g4][%mdl 32]} 7. Bb3 {[%emt 0:03:53]} Bg7 {[%emt 0:02:17]} 8. Na3 {[%emt 0:08:49][%cal Bb1a3,Ba3c4,Bc4e3][%mdl 32]} O-O {[%emt 0:01:27] The position is equal.} 9. Nc4 {[%emt 0:02:00]} Ne7 {[%emt 0:05:31]} 10. h4 {[%emt 0:03:59]} g4 {[%emt 0:06:57]} 11. Nh2 {[%emt 0:01:13]} Be6 {[%emt 0:09:25]} 12. g3 {[%emt 0:08:22]} Qd7 {[%emt 0:19:01]} 13. Qe2 {[%emt 0:13:05]} (13. Ne3 $16) 13... Ng6 {[%emt 0:05:47]} (13... c6 $11) 14. Ne3 $16 {[%emt 0:02:19] Black is on the road to losing.} h5 {[%emt 0:10:21] [#]} 15. f3 $1 {[%emt 0:02:42]} gxf3 {[%emt 0:11:57]} 16. Rxf3 {[%emt 0:19:14]} (16. Qxf3 Ne7 $14) 16... Ne7 {[%emt 0:04:05]} 17. Bd2 {[%emt 0:02:51] Strongly threatening Raf1.} Nh7 {[%emt 0:06:34]} (17... a5 $16) 18. Raf1 $18 {[%emt 0:02:59]} Bxb3 {[%emt 0:01:02]} 19. axb3 {[%emt 0:01:06]} d5 {[%emt 0:00:03]} 20. R3f2 {[%emt 0:07:51]} dxe4 {[%emt 0:00:16]} 21. dxe4 {[%emt 0:00:21]} (21. Qxh5 f5 $14) 21... Qc6 {[%emt 0:02:28]} 22. Qxh5 {[%emt 0:01:34][%cal Rf2f7]} Qxe4 {[%emt 0:01:00]} 23. Rxf7 {[%emt 0:02:11]} Nf6 {[%emt 0:01:17]} 24. Rxf8+ {[%emt 0:01:39]} Rxf8 {[%emt 0:00:04]} 25. Qe2 $40 {[%emt 0:04:13][%mdl 128] White has strong attack.} Bh6 {[%emt 0:00:49]} 26. Rf2 {[%emt 0:01:50]} Bxe3 {[%emt 0:01:01]} 27. Qxe3 {[%emt 0:00:56]} Qxe3 {[%emt 0:00:14]} 28. Bxe3 {[%emt 0:00:03]} Ne4 {[%emt 0:01:01]} 29. Rxf8+ {[%emt 0:01:22]} Kxf8 {[%emt 0:00:02][%mdl 4096] Endgame. KBN-KNN} 30. g4 {[%emt 0:02:03]} (30. Bxa7 $6 Nxg3 31. Bb8 Ng6 32. Bxc7 Nxh4 $18) 30... Nd5 {[%emt 0:00:04]} 31. Bh6+ {[%emt 0:00:06]} Kf7 {[%emt 0:00:04]} 32. Nf3 {[%emt 0:01:10]} Ke6 {[%emt 0:01:31]} 33. Ng5+ {[%emt 0:00:32]} Nxg5 {[%emt 0:00:05]} 34. Bxg5 {[%emt 0:00:02] KB-KN} a5 {[%emt 0:00:28]} 35. Kf2 {[%emt 0:00:15]} b5 {[%emt 0:00:54][%cal Bb7b5,Bb5a4][%mdl 32]} 36. Kf3 {[%emt 0:01:11]} a4 {[%emt 0:00:29]} 37. bxa4 {[%emt 0:00:12]} bxa4 {[%emt 0:00:03]} 38. h5 {[%emt 0:01:19]} Nb6 {[%emt 0:00:39]} 39. Bc1 {[%emt 0:01:06]} Nd7 {[%emt 0:00:46]} 40. Be3 {[%emt 0:00:00]} Nf6 {[%emt 0:00:44]} 41. Bg5 {[%emt 0:04:38] [#] White threatens Bxf6 and mate.} Ne8 {[%emt 0:04:38]} 42. Bd8 {[%emt 0:10:47]} Nd6 {[%emt 0:03:24]} 43. g5 {[%emt 0:06:33]} e4+ {[%emt 0:11:54]} 44. Kf4 {[%emt 0:03:11][%cal Og5g6] And now g6! would win.} e3 {[%emt 0:01:12]} 45. Kxe3 {[%emt 0:01:47]} (45. Bxc7 e2 46. Bxd6 Kxd6 $19 (46... e1=B $2 {perishes.} 47. h6 $18) (46... e1=Q $2 47. Bb4 $19)) 45... Nc4+ {[%emt 0:02:02]} 46. Kd3 {[%emt 0:03:49]} Nxb2+ {[%emt 0:00:12]} 47. Kc2 {[%emt 0:00:02]} Nc4 {[%emt 0:00:52]} 48. h6 {[%emt 0:00:09][%cal Bh5h6,Bh6h7][%mdl 32]} Kf7 {[%emt 0:03:15]} 49. h7 $1 {[%emt 0:00:04]} Kg7 {[%emt 0:00:05]} 50. g6 $1 {[%emt 0:00:03]} ({And not} 50. Bxc7 Kxh7 51. Bf4 Kg6 $11) 50... Ne3+ {[%emt 0:00:25]} 51. Kb2 {[%emt 0:00:14] Weighted Error Value: White=0.08 (flawless) /Black=0.44.  Mistake:       	White=1     	Black=2      Inaccurate:     	---       	Black=2      OK:         	White=16    	Black=13     Best:        	White=3     	Black=2} 1-0

[Event "Israel National League 2024"]
[Site "Israel"]
[Date "2024.02.16"]
[Round "7.23"]
[White "Bronstein, Or"]
[Black "Caspi, Israel"]
[Result "1/2-1/2"]
[ECO "D24"]
[WhiteElo "2441"]
[BlackElo "2468"]
[Annotator "RC"]
[PlyCount "124"]
[EventDate "2024.01.07"]
[EventType "team-tourn"]
[EventCountry "ISR"]
[SourceTitle "playchess.com"]
[Source "ChessBase"]
[SourceQuality "1"]
[TimeControl "40/5400+30:1800+30"]

1. d4 {[%emt 0:00:23]} Nf6 {[%emt 0:00:06]} 2. c4 {[%emt 0:00:37]} e6 {[%emt 0:00:06]} 3. Nf3 {[%emt 0:02:22]} d5 {[%emt 0:00:07]} 4. Nc3 {[%emt 0:00:05]} dxc4 {[%emt 0:00:05]} 5. e4 {[%emt 0:01:10]} b5 {[%emt 0:00:06]} 6. e5 {[%emt 0:00:20]} Nd5 {[%emt 0:00:06]} 7. Nxb5 {[%emt 0:00:07]} Nb6 {[%emt 0:00:05]} 8. Be2 {[%emt 0:00:22]} Be7 {[%emt 0:01:01]} 9. O-O {[%emt 0:02:23]} Nc6 {[%emt 0:06:19]} 10. Qd2 {[%emt 0:01:48]} Bb7 {[%emt 0:04:13]} 11. Rd1 {[%emt 0:03:11]} Qd7 {[%emt 0:00:07]} 12. Qf4 {[%emt 0:08:32]} g5 {[%emt 0:00:15]} 13. Qg3 {[%emt 0:10:29]} O-O-O {[%emt 0:00:09]} 14. b3 {[%emt 0:05:47]} cxb3 {[%emt 0:19:26]} 15. axb3 {[%emt 0:00:21]} Kb8 {[%emt 0:00:27]} 16. Nc3 {[%emt 0:29:56]} Rhg8 {[%emt 0:15:45]} 17. Be3 {[%emt 0:03:53]} g4 {[%emt 0:11:03]} 18. Ne1 {[%emt 0:00:04]} Nb4 {[%emt 0:03:04]} 19. Bb5 {[%emt 0:07:12]} Qc8 {[%emt 0:00:19]} 20. Rdc1 {[%emt 0:07:59]} h5 {[%emt 0:13:19]} 21. h4 {[%emt 0:00:45]} gxh3 {[%emt 0:03:09]} 22. Qxh3 {[%emt 0:00:02]} Rg6 {[%emt 0:02:26]} 23. Bf1 {[%emt 0:01:36]} a6 {[%emt 0:03:35]} 24. Na4 {[%emt 0:06:47]} N6d5 {[%emt 0:01:13]} 25. Nc5 {[%emt 0:01:38]} Bxc5 {[%emt 0:01:11]} 26. Rxc5 {[%emt 0:00:02]} Rdg8 {[%emt 0:01:36]} 27. Rac1 {[%emt 0:01:57]} Qe8 {[%emt 0:05:38]} 28. Bd2 {[%emt 0:03:41]} Nc6 {[%emt 0:01:23]} 29. Qd3 {[%emt 0:00:28]} Rg4 {[%emt 0:01:39]} 30. Nc2 {[%emt 0:00:59]} h4 {[%emt 0:04:05]} 31. f3 {[%emt 0:00:11]} Rg3 {[%emt 0:00:30]} 32. Rxd5 {[%emt 0:00:25]} exd5 {[%emt 0:00:32]} 33. Bf4 {[%emt 0:00:52]} R3g6 {[%emt 0:01:38]} 34. Ne3 {[%emt 0:00:22]} Qe6 {[%emt 0:00:06]} 35. Qc3 {[%emt 0:00:34]} f6 {[%emt 0:01:08]} 36. Qc5 {[%emt 0:00:37]} fxe5 {[%emt 0:00:34]} 37. dxe5 {[%emt 0:00:01]} h3 {[%emt 0:00:28]} 38. g4 {[%emt 0:00:41]} Qf7 {[%emt 0:01:24]} 39. Nxd5 {[%emt 0:00:44]} Rxg4+ {[%emt 0:00:39]} 40. fxg4 {[%emt 0:00:13]} Rxg4+ {[%emt 0:00:06]} 41. Kh2 {[%emt 0:10:42]} Rxf4 {[%emt 0:04:10]} 42. Nxf4 {[%emt 0:01:54]} Qxf4+ {[%emt 0:01:34]} 43. Kxh3 {[%emt 0:00:02]} Nxe5 {[%emt 0:06:14]} 44. Qxc7+ {[%emt 0:15:44]} Ka8 {[%emt 0:01:48]} 45. Be2 {[%emt 0:00:43]} Qe3+ {[%emt 0:07:03]} 46. Kh4 {[%emt 0:00:02]} Ng6+ {[%emt 0:04:45]} 47. Kg4 {[%emt 0:00:12]} Qxe2+ {[%emt 0:00:57]} 48. Kg5 {[%emt 0:00:06]} Qe4 {[%emt 0:06:14]} 49. Rc4 {[%emt 0:01:25]} Qe8 {[%emt 0:00:57]} 50. Rb4 {[%emt 0:03:17]} Qe7+ {[%emt 0:00:56]} 51. Qxe7 {[%emt 0:00:01]} Nxe7 {[%emt 0:00:03]} 52. Rh4 {[%emt 0:01:22]} Ka7 {[%emt 0:00:43]} 53. Kf6 {[%emt 0:00:02]} Nc6 {[%emt 0:00:11]} 54. Ke6 {[%emt 0:01:22]} Kb6 {[%emt 0:00:06]} 55. Kd6 {[%emt 0:00:07]} a5 {[%emt 0:00:15]} 56. Rf4 {[%emt 0:01:15]} Nb4 {[%emt 0:01:17]} 57. Rh4 {[%emt 0:00:19]} Bc6 {[%emt 0:01:33]} 58. Ke5 {[%emt 0:00:43]} Kb5 {[%emt 0:00:43]} 59. Kd4 {[%emt 0:00:21]} Bd5 {[%emt 0:00:41]} 60. Rh5 {[%emt 0:00:10]} Kc6 {[%emt 0:00:14]} 61. Rh6+ {[%emt 0:00:09]} Kb5 {[%emt 0:00:05]} 62. Rh5 {[%emt 0:00:03]} Kc6 {[%emt 0:01:53]} 1/2-1/2

[Event "Israel National League 2024"]
[Site "Israel"]
[Date "2024.02.16"]
[Round "7.24"]
[White "Golod, Vitali"]
[Black "Veinberg, Nimrod"]
[Result "1/2-1/2"]
[ECO "C68"]
[WhiteElo "2498"]
[BlackElo "2411"]
[Annotator "TA"]
[PlyCount "25"]
[EventDate "2024.01.07"]
[EventType "team-tourn"]
[EventCountry "ISR"]
[SourceTitle "playchess.com"]
[Source "ChessBase"]
[SourceQuality "1"]
[TimeControl "40/5400+30:1800+30"]

{[%evp 13,25,0,0,0,0,0,0,0,0,4,9,0,0,0]} 1. e4 {[%emt 0:00:20]} e5 {[%emt 0:00:20]} 2. Nf3 {[%emt 0:00:11]} Nc6 {[%emt 0:00:21]} 3. Bb5 {[%emt 0:00:56]} a6 {[%emt 0:00:14]} 4. Bxc6 {[%emt 0:00:44]} dxc6 {[%emt 0:00:13]} 5. Nc3 {[%emt 0:00:53]} Qd6 {[%emt 0:01:42]} 6. d4 {[%emt 0:02:53]} exd4 {[%emt 0:00:14]} 7. Qxd4 {[%emt 0:00:15]} Qxd4 {[%emt 0:00:49] The position is equal.} 8. Nxd4 {[%emt 0:00:16]} Bd7 {[%emt 0:00:13]} 9. Be3 {[%emt 0:01:34]} O-O-O {[%emt 0:00:19]} 10. f3 {[%emt 0:03:27]} Bb4 {[%emt 0:04:22]} 11. Nde2 {[%emt 0:03:16]} Re8 {[%emt 0:05:48]} 12. Kf2 {[%emt 0:05:20]} f5 {[%emt 0:01:51]} 13. a3 {[%emt 0:13:03] Not much happened in this game.   Weighted Error Value: White=0.02 (flawless) /Black=0.00 (flawless) .  OK:         	White=3     	Black=4} 1/2-1/2

[Event "Israel National League 2024"]
[Site "Israel"]
[Date "2024.02.16"]
[Round "7.25"]
[White "Rechlis, Gad"]
[Black "Greenfeld, Alon"]
[Result "1/2-1/2"]
[ECO "D74"]
[WhiteElo "2473"]
[BlackElo "2455"]
[Annotator "TA"]
[PlyCount "29"]
[EventDate "2024.01.07"]
[EventType "team-tourn"]
[EventCountry "ISR"]
[SourceTitle "playchess.com"]
[Source "ChessBase"]
[SourceQuality "1"]
[TimeControl "40/5400+30:1800+30"]

{[%evp 14,29,12,10,10,11,18,0,13,0,13,0,0,-36,-49,-44,-16,-90]} 1. Nf3 {[%emt 0:00:04]} Nf6 {[%emt 0:02:19]} 2. g3 {[%emt 0:00:40]} g6 {[%emt 0:00:12]} 3. Bg2 {[%emt 0:00:06]} Bg7 {[%emt 0:00:05]} 4. O-O {[%emt 0:02:51]} O-O {[%emt 0:02:10]} 5. c4 {[%emt 0:02:38]} Nc6 {[%emt 0:02:31]} 6. Nc3 {[%emt 0:05:43]} d5 {[%emt 0:01:43]} 7. cxd5 {[%emt 0:00:23]} Nxd5 {[%emt 0:00:10]} 8. d4 {[%emt 0:00:34]} e5 {[%emt 0:01:23][%cal Re5d4,Be7e5,Be5e4][%mdl 32]} 9. Bg5 {[%emt 0:51:43]} f6 {[%emt 0:02:39] [#] aiming for ...Nxc3.} 10. Bd2 {[%emt 0:13:23] Nxd5 would now be deadly.} Nxc3 {[%emt 0:01:32]} (10... exd4 11. Nxd4 Nxd4 12. Nxd5 $16 (12. Bxd5+ Kh8 $14)) 11. Bxc3 {[%emt 0:00:47]} e4 $1 {[%emt 0:00:12]} 12. Nd2 {[%emt 0:00:03]} f5 {[%emt 0:00:23]} 13. Nb3 {[%emt 0:00:16]} Ne7 {[%emt 0:05:35]} 14. f3 {[%emt 0:08:57]} Nd5 {[%emt 0:00:19]} 15. Qc1 {[%emt 0:06:51] Repels Ne3.   Weighted Error Value: White=0.11 (very precise) /Black=0.00 (flawless) .  Mistake:       	White=1     	---        Inaccurate:     	White=1     	---        OK:         	White=1     	Black=5      Strong:       	---       	Black=1} (15. fxe4 $11 Ne3 16. Qd3 Nxf1 17. e5) 1/2-1/2

[Event "Israel National League 2024"]
[Site "Israel"]
[Date "2024.02.16"]
[Round "7.26"]
[White "Dvoirys, Semen I."]
[Black "Zoler, Dan"]
[Result "1/2-1/2"]
[ECO "C95"]
[WhiteElo "2466"]
[BlackElo "2460"]
[Annotator "TA"]
[PlyCount "75"]
[EventDate "2024.01.07"]
[EventType "team-tourn"]
[EventCountry "ISR"]
[SourceTitle "playchess.com"]
[Source "ChessBase"]
[SourceQuality "1"]
[TimeControl "40/5400+30:1800+30"]

{[%evp 37,75,31,29,34,62,1,70,72,85,40,22,37,41,-32,-16,-15,178,160,206,211,262,264,223,266,265,237,221,0,0,-1135,0,0,0,0,0,0,0,0,0,0]} 1. e4 {[%emt 0:00:03]} e5 {[%emt 0:00:20]} 2. Nf3 {[%emt 0:00:06]} Nc6 {[%emt 0:00:15]} 3. Bb5 {[%emt 0:00:05][%cal Bf1b5,Bb5a4,Ba4b3][%mdl 32]} a6 {[%emt 0:02:17]} 4. Ba4 {[%emt 0:00:05]} Nf6 {[%emt 0:00:07]} 5. O-O {[%emt 0:00:07]} Be7 {[%emt 0:00:07]} 6. Re1 {[%emt 0:00:06]} b5 {[%emt 0:00:25]} 7. Bb3 {[%emt 0:00:04]} d6 {[%emt 0:00:17]} 8. c3 {[%emt 0:00:06]} O-O {[%emt 0:00:11]} 9. h3 {[%emt 0:00:08]} Nb8 {[%emt 0:00:32]} 10. d4 {[%emt 0:00:07]} Nbd7 {[%emt 0:00:04]} 11. Nbd2 {[%emt 0:00:09][%cal Bb1d2,Bd2f1,Bf1g3][%mdl 32]} Bb7 {[%emt 0:00:04]} 12. Bc2 {[%emt 0:00:08]} Re8 {[%emt 0:00:53]} 13. Nf1 {[%emt 0:02:11]} Bf8 {[%emt 0:05:31]} 14. Ng3 {[%emt 0:00:06]} g6 {[%emt 0:00:28]} 15. a4 {[%emt 0:05:15]} c5 {[%emt 0:06:55]} 16. d5 {[%emt 0:00:08]} c4 {[%emt 0:00:11]} 17. Bg5 {[%emt 0:03:54]} h6 {[%emt 0:03:03]} 18. Be3 {[%emt 0:00:06]} Nc5 {[%emt 0:01:43]} 19. Qd2 {[%emt 0:10:08]} Kh7 {[%emt 0:07:16]} 20. Nh2 {[%emt 0:02:39]} Qd7 {[%emt 0:01:03]} 21. a5 {[%emt 0:10:22]} ({White should play} 21. Reb1 $14) 21... Rac8 {[%emt 0:11:31]} (21... Bg7 $11) 22. Rf1 $1 $14 {[%emt 0:10:47] White is slightly better.} Qe7 {[%emt 0:20:47]} 23. Ng4 {[%emt 0:06:24]} (23. Rae1 {simplifies} Bg7 24. f4 Nb3 25. Bxb3 cxb3 26. fxe5 dxe5 27. Rf2) 23... Nxg4 $1 {[%emt 0:03:54]} 24. hxg4 {[%emt 0:00:06]} Qh4 {[%emt 0:00:34]} 25. g5 {[%emt 0:00:11]} (25. Qd1 $14) 25... Be7 {[%emt 0:00:33]} (25... hxg5 {simplifies} 26. Bxg5 Bh6 27. Bxh6 Qxh6 28. Qxh6+ Kxh6 29. f4 Kg7) 26. gxh6 {[%emt 0:02:08][%cal Of2f4]} Bf8 $2 {[%emt 0:34:29]} (26... Rf8 $11 {and Black stays safe.}) 27. f4 $1 $18 {[%emt 0:11:56][%cal Of4e5] And now fxe5! would win.} Rc7 {[%emt 0:00:00] [#]} (27... Qxg3 $16 28. Rf3 Qh4) 28. Rf3 $1 {[%emt 0:03:30] fxe5 would now be deadly.} exf4 {[%emt 0:00:00]} 29. Bxf4 {[%emt 0:08:25]} Bc8 {[%emt 0:00:00]} (29... Bxh6 $2 30. Nf5 gxf5 31. Rh3 $18) 30. Raf1 {[%emt 0:01:50]} f6 {[%emt 0:00:00] Repels Bg5} 31. Be3 {[%emt 0:08:18]} Nd7 {[%emt 0:00:00][%cal Bc5d7,Bd7e5,Be5g4][%mdl 32]} 32. Qf2 $2 {[%emt 0:00:37]} (32. e5 $18 Nxe5 33. Rxf6 Qxg3 34. Bf4 (34. Rxf8 Rxf8 35. Rxf8 Bf5 $16) 34... Bxh6 35. Bxh6) 32... Ne5 $11 {[%emt 0:00:00][%cal Oe5g4] Threatens to win with ...Ng4!} 33. Rxf6 $2 {[%emt 0:01:24][%mdl 8192] [#]} (33. Rf4 $11 Ng4 (33... Qxh6 $2 {perishes.} 34. Rxf6 Qh4 35. Rxf8 $18) 34. Rxg4 Qxg4 (34... Bxg4 $2 {too greedy.} 35. Qxf6 Qxf6 36. Rxf6 $16) 35. Bf4) 33... Bxh6 $2 {[%emt 0:00:00]} (33... Ng4 $1 $19 {[%csl Gg4][%cal Rh4h2]} 34. Ra1 Nxf2 35. Rxf2 Qxg3) 34. Bxh6 {[%emt 0:00:57] The position is equal.} (34. Rxd6 $2 {is the wrong capture.} Bxe3 (34... Ng4 $2 35. Re1 $19) 35. Qxe3 Ng4 $19) 34... Ng4 {[%emt 0:01:53][%csl Gg4][%cal Rh4h2] Repels Be3} 35. Rf7+ {[%emt 0:00:01]} Kg8 {[%emt 0:00:27][%csl Gg4][%cal Rh4h2]} 36. Rf8+ {[%emt 0:00:15]} Kh7 {[%emt 0:00:06][%csl Gg4][%cal Rh4h2]} 37. Rf7+ {[%emt 0:01:15]} Kg8 {[%emt 0:00:11][%csl Gg4][%cal Rh4h2]} 38. Rf8+ {[%emt 0:15:23] Quite a comeback for White.   Weighted Error Value: White=0.64/Black=0.59.  Loses game:     	White=1     	Black=1      Missed win:     	White=1     	Black=1      Mistake:       	White=2     	Black=2      Inaccurate:     	White=1     	Black=1      OK:         	White=3     	Black=6      Best:        	White=4     	Black=2      Strong:       	White=2     	Black=1} 1/2-1/2